bitfinex/quotes_ETHUSD_20240729
["timestamp","ask_amount","ask_price","bid_price","bid_amount"]
[1722273282840,0.0008,3309.9,3309.8,8.77993007]
[1722273283041,6.03872,3312.0,3310.2,5.46466]
[1722273283341,3.194,3312.2,3310.3,3.60687083]
[1722273283342,0.603872,3311.9,3310.3,3.60687083]
[1722273283655,3.01923,3312.1,3310.5,3.02069]
[1722273283853,3.01923,3312.1,3310.6,3.06039941]
[1722273284054,3.01905,3312.3,3310.7,2.4437]
[1722273284279,0.14293731,3313.0,3310.7,2.4437]
[1722273284280,3.01861,3312.8,3311.2,2.747]
[1722273284579,3.01861,3312.8,3311.3,0.06038627]
[1722273284778,3.01842,3313.0,3311.3,6.08033627]
[1722273285087,3.01814,3313.3,3311.6,3.868]
[1722273285244,3.01794,3313.6,3311.7,3.06037393]
[1722273285245,3.018,3313.5,3311.7,3.06037393]
[1722273285443,3.018,3313.5,3311.8,3.77270084]
[1722273285444,0.603594,3313.4,3311.8,3.77270084]
[1722273285648,0.603594,3313.4,3311.9,3.0]
[1722273285886,3.01794,3313.6,3312.0,0.0603735]
[1722273286101,3.194,3313.9,3312.0,0.0603735]
[1722273286102,0.00180904,3314.9,3312.2,0.3033]
[1722273286265,0.00180904,3314.9,3312.3,0.3033]
[1722273286266,3.01768,3313.8,3312.3,0.3033]
[1722273286582,3.01784,3313.7,3312.3,0.3033]
[1722273286794,3.01768,3313.8,3312.2,3.0]
[1722273287084,0.301768,3313.8,3312.3,0.8401]
[1722273287283,0.301768,3313.8,3312.4,2.6713]
[1722273287442,3.01747,3314.1,3312.4,2.6713]
[1722273287443,3.01761,3313.9,3312.5,3.09497819]
[1722273287643,3.01771,3313.8,3312.5,3.09497819]
[1722273287842,3.01771,3313.8,3312.6,3.0]
[1722273288073,3.01754,3314.0,3312.5,0.09497819]
[1722273288281,3.0175,3314.0,3312.5,0.09497819]
[1722273288481,3.01778,3313.7,3312.5,0.09497819]
[1722273288682,0.30175,3313.9,3312.5,0.09497819]
[1722273288899,3.0179,3313.6,3312.5,0.09497819]
[1722273289102,3.01769,3313.8,3312.5,0.09497819]
[1722273289247,3.0175,3314.0,3312.6,0.02021423]
[1722273289448,3.01759,3313.9,3312.6,0.06036349]
[1722273289688,3.01759,3313.9,3312.5,0.09497819]
[1722273289864,3.319439,3313.8,3312.5,0.34127601]
[1722273290045,3.319439,3313.8,3312.5,0.64457601]
[1722273290243,3.319439,3313.8,3312.6,0.0603635]
[1722273290244,0.301759,3313.8,3312.6,0.0603635]
[1722273290549,3.16256,3314.4,3312.5,0.34127601]
[1722273290550,3.01778,3313.7,3312.5,0.34127601]
[1722273290845,3.01778,3313.7,3312.5,0.09497819]
[1722273290846,3.01804,3313.4,3312.5,0.09497819]
[1722273291391,3.01746,3314.1,3312.5,0.09497819]
[1722273291392,3.01844,3313.0,3312.5,0.09497819]
[1722273291589,5.50118,3313.7,3312.5,0.09497819]
[1722273291590,3.01816,3313.3,3312.5,0.09497819]
[1722273291890,3.0184,3313.1,3312.5,0.09497819]
[1722273292388,3.01852,3312.9,3312.5,0.09497819]
[1722273292711,3.01876,3312.7,3312.5,0.09497819]
[1722273292910,6.03754,3312.6,3312.5,0.09497819]
[1722273293114,11.49341,3312.6,3312.5,0.09497819]
[1722273293249,11.49341,3312.6,3310.6,2.4387]
[1722273293250,3.01925,3312.1,3310.6,2.4387]
[1722273293448,3.321265,3312.0,3310.7,0.24387]
[1722273293651,3.01971,3311.6,3310.6,2.742]
[1722273293876,0.301925,3312.0,3309.8,2.4387]
[1722273293877,3.02022,3311.1,3309.8,2.4387]
[1722273294105,3.194,3311.9,3309.8,2.4387]
[1722273294434,3.02049,3310.8,3309.8,2.4387]
[1722273294548,3.01916,3312.2,3310.3,0.3033]
[1722273294750,2.3768,3312.4,3310.4,0.06039866]
[1722273294949,0.0955576,3311.8,3310.6,1.5]
[1722273295149,0.0955576,3311.8,3310.7,0.06039003]
[1722273295364,0.0955576,3311.8,3310.6,1.5]
[1722273295365,0.0955576,3311.8,3310.8,3.08078651]
[1722273295591,0.0955576,3311.8,3310.6,4.52053]
[1722273295592,0.0955576,3311.8,3310.6,1.5]
[1722273295791,0.0955576,3311.8,3310.5,2.3573]
[1722273295954,3.01966,3311.7,3310.5,2.59303]
[1722273296151,0.0955576,3311.8,3310.6,3.06039939]
[1722273296490,0.0955576,3311.8,3310.6,3.0]
[1722273296703,3.01972,3311.6,3310.5,2.3573]
[1722273296851,3.01993,3311.4,3310.5,2.3573]
[1722273297048,3.02011,3311.2,3309.9,0.24387]
[1722273297253,3.02015,3311.1,3309.9,0.24387]
[1722273297553,3.33150876,3311.3,3310.0,0.06040984]
[1722273297785,0.31154876,3311.3,3309.8,2.2529]
[1722273297991,3.02031,3311.0,3309.8,2.2529]
[1722273298696,3.02031,3311.0,3309.9,0.06041531]
[1722273298999,0.0955576,3311.5,3309.8,2.2529]
[1722273299206,3.1153376,3311.5,3310.0,0.36371532]
[1722273299493,0.70905236,3311.5,3310.1,0.48967153]
[1722273299791,0.0955576,3311.5,3310.2,0.06040458]
[1722273299997,3.1153376,3311.5,3310.3,0.06040385]
[1722273300219,3.01987,3311.4,3310.1,0.48967153]
[1722273300500,0.0955576,3311.3,3310.1,0.48967153]
[1722273300746,0.0955576,3311.3,3310.1,0.18637153]
[1722273300882,0.0955576,3311.3,3309.9,3.0]
[1722273301055,0.0955576,3311.3,3309.8,2.2529]
[1722273301259,3.02052,3310.7,3309.8,2.2529]
[1722273301493,3.02036,3310.9,3309.8,2.2529]
[1722273301804,3.4180536,3310.8,3309.8,2.2529]
[1722273301953,0.3975936,3310.8,3309.8,2.2529]
[1722273302159,3.02057,3310.7,3309.8,2.2529]
[1722273302467,0.0955576,3310.8,3309.8,2.2529]
[1722273302675,0.0955576,3310.8,3309.9,0.06041615]
[1722273302859,3.1160176,3310.8,3309.8,2.2529]
[1722273303060,0.0955576,3310.8,3309.9,0.06041871]
[1722273303401,0.40713736,3310.8,3309.8,2.2529]
[1722273303615,0.0955576,3310.8,3309.8,5.8609]
[1722273303795,0.0955576,3310.8,3310.0,3.02113]
[1722273303996,0.0955576,3310.8,3310.0,0.3033]
[1722273304207,0.0955576,3310.8,3310.1,0.06040651]
[1722273304362,0.0955576,3310.8,3310.0,0.3033]
[1722273304561,0.0955576,3310.8,3310.0,0.55562]
[1722273305065,0.0955576,3310.8,3310.1,0.06040404]
[1722273305802,0.0955576,3310.8,3310.1,3.0]
[1722273306004,0.0955576,3310.8,3310.2,0.06040673]
[1722273306301,0.0955576,3310.8,3310.3,0.06040647]
[1722273307003,0.2455576,3310.8,3310.0,0.85892]
[1722273307224,0.2455576,3310.8,3310.1,0.74959571]
[1722273308179,0.2455576,3310.8,3310.1,3.77063571]
[1722273308419,0.2455576,3310.8,3310.5,3.32392]
[1722273308631,0.2455576,3310.8,3310.7,0.3033]
[1722273308632,0.11412437,3310.8,3310.7,0.3033]
[1722273308842,0.05304011,3310.8,3310.7,0.3033]
[1722273309143,0.05304011,3310.8,3310.7,0.94173131]
[1722273309324,0.05304011,3310.8,3310.7,0.63843131]
[1722273309745,0.05304011,3310.8,3310.7,0.94173131]
[1722273310606,0.05304011,3310.8,3310.5,3.0]
[1722273310807,0.05304011,3310.8,3310.6,0.06040448]
[1722273311120,0.05304011,3310.8,3310.6,1.56040448]
[1722273311321,0.01752548,3310.8,3310.7,6.041]
[1722273311632,3.01877,3312.6,3310.9,0.3033]
[1722273311949,3.01877,3312.6,3311.0,0.64362071]
[1722273311950,3.01884,3312.6,3311.0,0.64362071]
[1722273312427,2.37,3313.3,3311.0,0.64362071]
[1722273312607,3.01906,3312.3,3311.0,0.58324]
[1722273312815,3.01915,3312.2,3311.0,0.58324]
[1722273313126,3.01932,3312.0,3311.1,0.358324]
[1722273313336,3.01879,3312.6,3311.1,0.358324]
[1722273313661,3.01879,3312.6,3311.0,0.27994]
[1722273313662,3.01905,3312.3,3311.2,0.06039082]
[1722273313870,3.194,3313.1,3311.2,0.06039082]
[1722273314029,3.01919,3312.2,3311.2,0.06039082]
[1722273314212,3.01919,3312.2,3310.9,3.0]
[1722273314419,3.01919,3312.2,3311.0,0.54961]
[1722273314687,3.01914,3312.2,3310.9,3.0]
[1722273314822,3.01945,3311.9,3310.9,3.0]
[1722273315020,3.01911,3312.3,3310.8,2.4961]
[1722273315319,3.01914,3312.2,3310.9,0.06038992]
[1722273315677,3.01903,3312.4,3311.0,0.28597899]
[1722273315868,3.01882,3312.6,3311.1,0.06038991]
[1722273316076,3.01863,3312.8,3311.1,0.06038991]
[1722273316218,3.01863,3312.8,3311.2,3.02004]
[1722273316420,3.01878,3312.6,3311.3,3.0603823]
[1722273316622,3.01865,3312.8,3311.4,0.30603823]
[1722273316937,3.01865,3312.8,3311.5,0.06038229]
[1722273317265,3.01887,3312.5,3311.5,0.06038229]
[1722273317473,3.01812,3313.4,3311.5,0.06038229]
[1722273317474,3.01903,3312.4,3311.5,0.06038229]
[1722273317770,0.301903,3312.3,3311.5,0.06038229]
[1722273318070,1.949,3313.9,3311.2,1.86368233]
[1722273318221,3.01905,3312.3,3311.2,0.3033]
[1722273318431,3.01874,3312.7,3311.2,0.3033]
[1722273318730,3.01844,3313.0,3311.3,0.39071213]
[1722273318959,3.01865,3312.8,3311.3,3.39071213]
[1722273319267,2.3993,3313.8,3311.4,4.4544]
[1722273319488,2.3993,3313.8,3311.5,3.0]
[1722273319785,3.01911,3312.3,3311.6,0.69044]
[1722273320090,3.01897,3312.4,3311.5,3.0]
[1722273320091,3.01895,3312.4,3311.5,3.0]
[1722273320227,3.01895,3312.4,3311.4,2.4044]
[1722273320228,3.01895,3312.4,3311.4,5.4044]
[1722273320428,0.301895,3312.4,3311.5,0.06038404]
[1722273321064,3.01914,3312.2,3311.5,0.06038404]
[1722273321287,2.3993,3312.8,3311.0,0.28597899]
[1722273321441,3.01958,3311.8,3310.9,2.3019]
[1722273321828,3.01942,3311.9,3310.9,2.3019]
[1722273322476,3.01983,3311.5,3310.2,2.3737]
[1722273322847,3.0197,3311.6,3310.2,2.3737]
[1722273323044,3.01992,3311.4,3310.3,0.2677]
[1722273323671,3.02014,3311.1,3310.2,2.3737]
[1722273323906,3.02021,3311.1,3310.2,2.3737]
[1722273324596,3.02027,3311.0,3310.2,2.3737]
[1722273324764,3.02051,3310.7,3309.6,2.3338]
[1722273325369,3.02025,3311.0,3309.6,2.3338]
[1722273325594,3.62429,3311.0,3309.7,0.29379236]
[1722273325793,0.60404,3311.0,3309.8,0.06041238]
[1722273326028,3.02015,3311.1,3309.6,2.3338]
[1722273326029,3.02066,3310.6,3309.6,2.3338]
[1722273326169,3.02102,3310.2,3309.0,2.3202]
[1722273326509,3.02087,3310.3,3309.0,2.3202]
[1722273326684,3.02099,3310.2,3309.1,0.3033]
[1722273326890,3.02122,3310.0,3309.0,2.3202]
[1722273327196,0.302122,3309.9,3309.0,2.3202]
[1722273327618,3.02144,3309.7,3309.0,2.3202]
[1722273327788,3.02152,3309.6,3309.0,2.3202]
[1722273327971,3.02135,3309.8,3309.0,2.3202]
[1722273328170,0.302122,3309.9,3309.0,2.3202]
[1722273328396,3.02098,3310.2,3309.0,2.55222]
[1722273328609,5.38648,3310.9,3309.0,2.55222]
[1722273328610,3.02087,3310.3,3309.0,2.55222]
[1722273328790,3.02107,3310.1,3309.1,0.06042859]
[1722273329326,3.0207,3310.5,3309.1,0.06042859]
[1722273329625,3.02078,3310.4,3309.1,0.06042859]
[1722273329912,3.02104,3310.2,3309.1,0.06042859]
[1722273330118,3.02119,3310.0,3309.1,0.06042604]
[1722273330327,0.302119,3309.9,3309.1,0.06042604]
[1722273330615,3.02141,3309.8,3309.0,2.3202]
[1722273330937,3.02141,3309.8,3308.0,3.07724161]
[1722273330938,0.302119,3309.9,3308.4,2.2923]
[1722273331086,3.0216,3309.5,3308.4,2.2923]
[1722273331421,6.20451,3310.7,3308.4,2.2923]
[1722273331588,3.02133,3309.8,3308.4,2.2923]
[1722273331793,3.0216,3309.5,3308.4,2.2923]
[1722273332004,3.32376,3309.5,3308.4,2.52153]
[1722273332224,3.02101,3310.2,3308.5,3.01542961]
[1722273332225,3.0213,3309.9,3308.5,3.01542961]
[1722273332496,3.02063,3310.6,3309.2,2.3035]
[1722273332725,3.02052,3310.7,3309.3,0.01895697]
[1722273332886,3.02069,3310.5,3309.2,2.3035]
[1722273333085,3.02031,3311.0,3309.2,2.3035]
[1722273333308,3.16057258,3311.5,3308.7,2.3035]
[1722273333309,3.02089,3310.3,3308.7,2.3035]
[1722273333522,3.02098,3310.2,3308.7,2.3035]
[1722273333836,0.302098,3310.1,3308.8,0.23035]
[1722273334139,3.323148,3310.1,3308.8,3.23035]
[1722273334286,0.302098,3310.1,3308.8,3.23035]
[1722273334476,3.02106,3310.1,3308.8,3.53365]
[1722273334677,3.02075,3310.5,3308.9,0.06043109]
[1722273334931,2.3661,3310.9,3308.9,0.06043109]
[1722273334932,2.3661,3310.9,3309.1,3.02195]
[1722273335110,2.3661,3310.9,3309.2,3.08228031]
[1722273335320,3.02051,3310.7,3309.3,3.06042032]
[1722273335485,0.23661,3310.8,3310.0,0.505]
[1722273335685,3.02075,3310.5,3310.0,0.505]
[1722273335985,3.02079,3310.4,3310.0,0.505]
[1722273336190,0.23661,3310.8,3310.0,0.505]
[1722273336191,3.322959,3310.3,3310.0,0.505]
[1722273336383,3.02096,3310.2,3310.0,0.505]
[1722273336885,0.302079,3310.3,3310.0,0.505]
[1722273336886,3.02105,3310.1,3310.0,0.505]
[1722273337121,6.0421,3310.1,3310.0,0.505]
[1722273337487,8.4697,3310.1,3310.0,0.505]
[1722273337883,5.44865,3310.1,3310.0,0.505]
[1722273338085,3.02105,3310.1,3310.0,0.505]
[1722273338432,3.625245,3310.1,3310.0,0.505]
[1722273338968,6.646295,3310.1,3310.0,0.505]
[1722273342118,0.604195,3310.1,3310.0,0.505]
[1722273342358,3.02085,3310.4,3310.0,0.505]
[1722273342359,3.0208,3310.4,3310.0,0.505]
[1722273342604,3.02089,3310.3,3310.0,0.505]
[1722273343112,3.02056,3310.7,3310.0,0.505]
[1722273343265,0.23661,3310.8,3310.0,0.505]
[1722273343659,3.02003,3311.3,3310.0,0.505]
[1722273343996,3.02003,3311.3,3310.1,2.4430149]
[1722273344217,3.01987,3311.4,3310.1,2.4430149]
[1722273344807,3.02012,3311.2,3310.1,2.4430149]
[1722273344963,3.624119,3311.2,3310.1,2.73781639]
[1722273345506,3.02023,3311.0,3310.1,0.29480149]
[1722273345810,3.624119,3311.2,3310.1,0.06041386]
[1722273346004,0.603999,3311.2,3310.1,0.06041386]
[1722273346169,2.3111,3311.5,3310.1,0.06041386]
[1722273346170,3.01977,3311.5,3310.1,0.06041386]
[1722273346522,3.01996,3311.4,3310.1,0.06041386]
[1722273346655,3.01969,3311.6,3310.1,0.06041386]
[1722273346656,3.01979,3311.5,3310.1,0.06041386]
[1722273347014,3.02004,3311.3,3310.2,0.06040787]
[1722273347215,3.02005,3311.2,3310.0,0.505]
[1722273347357,3.02016,3311.1,3310.0,0.505]
[1722273347559,3.02005,3311.2,3310.0,0.505]
[1722273347560,2.3128,3311.2,3310.0,0.505]
[1722273347860,3.0206,3310.6,3310.0,0.505]
[1722273348257,3.02079,3310.4,3310.0,0.505]
[1722273348495,3.02087,3310.3,3310.0,0.505]
[1722273348762,3.02093,3310.3,3310.0,0.505]
[1722273349207,3.02105,3310.1,3310.0,0.505]
[1722273349420,3.625251,3310.1,3310.0,0.505]
[1722273349572,6.646301,3310.1,3310.0,0.505]
[1722273353788,9.667351,3310.1,3310.0,0.505]
[1722273354133,9.667351,3310.1,3307.7,3.16384681]
[1722273354134,3.02194,3309.2,3308.0,2.2524]
[1722273354344,0.302194,3309.1,3308.0,2.2524]
[1722273354480,3.02176,3309.4,3308.0,2.2524]
[1722273354685,3.02166,3309.5,3308.0,2.2524]
[1722273355031,3.02157,3309.6,3308.1,0.06032579]
[1722273355725,3.02161,3309.5,3308.1,0.06032579]
[1722273355901,0.302161,3309.4,3308.2,0.53356158]
[1722273356105,3.02148,3309.7,3308.3,0.06032214]
[1722273356280,3.02133,3309.8,3308.3,0.06032214]
[1722273356649,0.604201,3310.1,3308.4,2.4082]
[1722273356778,0.604201,3310.1,3308.5,0.96791043]
[1722273356779,3.02124,3309.9,3308.5,0.96791043]
[1722273356979,3.02098,3310.2,3308.7,3.8873]
[1722273357357,3.02071,3310.5,3308.8,0.06043554]
[1722273357358,3.02088,3310.3,3308.8,0.06043554]
[1722273357569,3.02098,3310.2,3308.8,0.06043554]
[1722273357732,3.625246,3310.1,3308.9,0.66667055]
[1722273357935,0.604186,3310.1,3309.0,0.06043541]
[1722273358260,3.02078,3310.4,3309.0,0.06043541]
[1722273358673,3.0206,3310.6,3309.1,2.3427]
[1722273358842,3.02071,3310.5,3309.2,0.06042792]
[1722273359024,3.0206,3310.6,3309.2,0.06042792]
[1722273359025,3.624941,3310.4,3309.3,0.24031279]
[1722273359225,3.02081,3310.4,3309.3,0.30074073]
[1722273359836,5.59,3310.8,3309.1,2.3427]
[1722273360038,3.02124,3309.9,3309.1,2.3427]
[1722273360247,5.59,3310.8,3309.1,2.40313837]
[1722273360437,3.02084,3310.4,3309.2,0.06043033]
[1722273360673,3.0209,3310.3,3309.2,0.06043033]
[1722273360820,3.0209,3310.3,3309.1,2.3427]
[1722273361027,2.406,3310.8,3309.1,2.3427]
[1722273361028,3.02111,3310.1,3309.1,2.3427]
[1722273361391,3.02166,3309.5,3308.6,2.3284]
[1722273361671,3.0217,3309.4,3308.6,2.68232152]
[1722273362645,3.02186,3309.3,3308.6,0.35392152]
[1722273362971,3.02189,3309.2,3308.1,2.4597]
[1722273363695,6.20536,3309.8,3308.1,2.4597]
[1722273363696,3.02164,3309.5,3308.1,2.4597]
[1722273363918,3.02226,3308.8,3307.7,2.3532]
[1722273364211,3.0225,3308.6,3307.7,2.3532]
[1722273364359,3.02226,3308.8,3307.7,2.3532]
[1722273364553,3.324486,3308.8,3307.8,0.23532]
[1722273364751,3.0226,3308.4,3307.7,2.3532]
[1722273364952,3.02251,3308.6,3307.7,2.3532]
[1722273365204,0.302226,3308.8,3307.7,2.3532]
[1722273365205,3.324486,3308.8,3307.7,2.3532]
[1722273365566,0.302226,3308.8,3307.7,2.3532]
[1722273365892,3.02252,3308.5,3307.0,2.354]
[1722273366094,0.302252,3308.4,3307.1,0.537797]
[1722273366313,3.0228,3308.2,3307.1,0.537797]
[1722273366596,3.02288,3308.1,3307.0,2.354]
[1722273366899,3.02306,3307.9,3307.0,2.354]
[1722273367408,0.302252,3308.4,3307.0,2.354]
[1722273367551,3.02279,3308.2,3307.0,2.354]
[1722273367753,0.302279,3308.1,3307.0,2.354]
[1722273368018,3.324862,3308.4,3307.1,0.0604716]
[1722273368194,0.302252,3308.4,3307.1,0.0604716]
[1722273368395,3.324872,3308.4,3307.1,0.0604716]
[1722273368761,3.0228,3308.2,3307.0,2.354]
[1722273369071,0.302252,3308.4,3307.0,2.354]
[1722273369274,3.02323,3307.8,3306.4,2.4454]
[1722273369455,3.325573,3307.7,3306.4,3.07867]
[1722273369965,3.02335,3307.6,3306.4,3.07867]
[1722273370211,3.02353,3307.4,3306.4,2.4454]
[1722273371055,3.02343,3307.5,3306.4,2.4454]
[1722273371257,3.02353,3307.4,3306.4,2.4454]
[1722273371697,3.325573,3307.7,3306.4,2.4454]
[1722273372203,3.02334,3307.6,3306.4,2.4454]
[1722273372509,3.3559963,3307.5,3306.4,2.68994]
[1722273372656,3.02352,3307.4,3306.4,2.4454]
[1722273372859,3.02372,3307.2,3306.4,2.4454]
[1722273373055,3.184,3307.8,3305.8,2.4295]
[1722273373403,3.0237,3307.2,3305.8,2.4295]
[1722273373754,3.02399,3306.9,3305.8,2.4295]
[1722273374203,3.02398,3306.9,3305.8,2.4295]
[1722273374506,3.02435,3306.5,3305.1,2.4617]
[1722273374880,3.02444,3306.4,3305.1,2.4617]
[1722273375170,6.20784,3307.1,3305.1,2.4617]
[1722273375171,3.184,3307.0,3305.1,2.4617]
[1722273375371,3.02444,3306.4,3305.2,0.6349]
[1722273375579,3.02454,3306.3,3305.2,0.6349]
[1722273375790,3.326994,3306.3,3305.2,0.6349]
[1722273376004,0.302454,3306.3,3305.2,0.6349]
[1722273376220,4.044264,3307.0,3305.1,2.4617]
[1722273376221,3.02481,3306.0,3305.1,2.4617]
[1722273376438,3.02444,3306.4,3305.1,2.4617]
[1722273376606,3.02414,3306.8,3305.2,0.06050537]
[1722273376807,3.884174,3307.0,3305.4,3.584]
[1722273376808,0.860264,3307.0,3305.4,3.584]
[1722273377022,0.860264,3307.0,3305.6,5.49676]
[1722273377228,3.02354,3307.4,3305.7,0.06049479]
[1722273377433,3.0,3307.6,3305.7,0.06049479]
[1722273377434,3.02395,3307.0,3305.7,0.06049479]
[1722273377757,3.02355,3307.4,3305.7,0.06049479]
[1722273377958,2.3147,3307.7,3305.7,3.0604869]
[1722273378233,3.02412,3306.8,3305.6,2.4716]
[1722273378456,3.326622,3306.7,3305.6,2.4716]
[1722273378775,0.302412,3306.7,3305.6,2.4716]
[1722273379046,3.02417,3306.7,3305.6,2.4716]
[1722273379211,3.02399,3306.9,3305.6,2.4716]
[1722273380096,3.184,3306.9,3305.6,2.4716]
[1722273380297,3.184,3306.9,3304.9,3.0]
[1722273380527,5.43511,3306.8,3305.0,2.3001]
[1722273380834,5.75351,3306.8,3305.0,2.88851]
[1722273381036,3.02427,3306.6,3305.1,0.06050522]
[1722273381365,3.02423,3306.7,3305.1,0.06050522]
[1722273381637,0.636677,3306.6,3305.2,0.59746652]
[1722273381796,0.636677,3306.6,3305.3,0.06049769]
[1722273381996,0.636677,3306.6,3305.2,0.59746652]
[1722273382204,3.660937,3306.6,3305.2,0.59746652]
[1722273382401,3.02444,3306.4,3305.2,0.59746652]
[1722273382623,3.02416,3306.7,3305.3,0.06050393]
[1722273382824,3.02425,3306.6,3305.3,0.06050393]
[1722273383028,3.02425,3306.6,3305.0,2.88851]
[1722273383193,3.02445,3306.4,3305.1,0.319171]
[1722273383393,0.302425,3306.5,3305.1,0.319171]
[1722273383667,3.02443,3306.4,3305.1,0.319171]
[1722273383998,3.02454,3306.3,3305.1,0.319171]
[1722273384199,3.0225337,3306.3,3305.1,0.319171]
[1722273384427,0.302425,3306.5,3305.2,0.3207681]
[1722273384635,3.184,3307.0,3305.2,0.3207681]
[1722273384636,3.02468,3306.2,3305.2,0.3207681]
[1722273385197,3.02468,3306.2,3305.0,2.88851]
[1722273385612,3.02476,3306.1,3305.0,2.88851]
[1722273386202,3.0248,3306.0,3305.0,2.88851]
[1722273386642,3.02505,3305.8,3305.0,2.3001]
[1722273386850,3.02516,3305.7,3305.0,2.3001]
[1722273387150,3.02521,3305.6,3304.5,2.3762]
[1722273387314,3.327791,3305.5,3304.5,2.3762]
[1722273388471,3.02524,3305.6,3304.5,2.3762]
[1722273389342,6.184,3306.3,3304.5,2.3762]
[1722273389546,6.184,3306.3,3304.8,3.02588]
[1722273389547,3.02453,3306.3,3304.8,3.02588]
[1722273389774,3.02416,3306.7,3305.0,2.3537]
[1722273389987,0.302416,3306.6,3305.1,4.18592587]
[1722273390286,3.02417,3306.7,3305.2,3.0]
[1722273390493,3.02444,3306.4,3305.2,3.0]
[1722273390986,3.02419,3306.7,3305.2,3.0]
[1722273391137,0.545759,3306.7,3305.3,0.77294394]
[1722273391337,2.4792,3307.5,3305.6,3.584]
[1722273391596,6.20707,3307.9,3306.1,2.2512]
[1722273391742,3.02334,3307.6,3306.1,8.33639472]
[1722273392075,3.02334,3307.6,3306.1,5.31168472]
[1722273392644,3.02352,3307.4,3306.1,5.31168472]
[1722273393011,5.50213,3308.1,3306.1,2.2512]
[1722273393012,3.02385,3307.1,3306.1,2.2512]
[1722273393637,3.0228,3308.2,3306.2,0.06049508]
[1722273393638,3.02309,3307.9,3306.2,0.06049508]
[1722273393951,3.02307,3307.9,3306.3,3.02452]
[1722273394152,2.4792,3308.1,3306.4,0.06048228]
[1722273394382,3.02317,3307.8,3306.4,0.66899151]
[1722273394534,0.86861,3308.0,3306.4,0.66899151]
[1722273394535,3.02325,3307.7,3306.4,0.66899151]
[1722273394740,3.02337,3307.6,3306.4,0.66899151]
[1722273394949,3.02325,3307.7,3306.4,0.66899151]
[1722273395154,3.02334,3307.6,3306.4,0.66899151]
[1722273395348,3.02334,3307.6,3306.4,0.60850923]
[1722273395651,0.302325,3307.7,3306.2,3.0]
[1722273395652,0.55,3307.5,3306.2,3.0]
[1722273395997,0.55,3307.6,3306.2,0.06049062]
[1722273396171,3.0,3307.9,3306.3,0.06049062]
[1722273396363,6.02308,3307.9,3306.3,3.08501062]
[1722273396590,3.02317,3307.8,3306.4,3.60850106]
[1722273396754,3.02317,3307.8,3306.4,0.60850106]
[1722273397193,4.255478,3307.9,3306.4,0.60850106]
[1722273397368,3.02281,3308.2,3306.6,2.252]
[1722273397575,2.428,3308.7,3306.8,3.024]
[1722273397576,3.02243,3308.6,3306.8,3.024]
[1722273397782,3.02243,3308.6,3306.7,3.64447538]
[1722273397783,2.428,3309.2,3307.1,3.584]
[1722273397989,3.02243,3308.6,3307.3,2.252]
[1722273398149,3.02231,3308.8,3307.3,2.252]
[1722273398348,3.02216,3308.9,3307.3,2.252]
[1722273398349,3.02233,3308.7,3307.3,2.252]
[1722273398585,0.302233,3308.6,3307.4,0.56104]
[1722273398823,3.02207,3309.0,3307.4,3.60299663]
[1722273399116,0.2428,3309.1,3307.5,0.06046929]
[1722273399117,3.26484,3309.1,3307.5,0.06046929]
[1722273399319,3.02188,3309.2,3307.5,0.06046929]
[1722273399529,3.02215,3308.9,3307.5,0.06046929]
[1722273399885,3.02208,3309.0,3307.5,0.06046929]
[1722273400125,0.302208,3308.9,3307.6,0.36215093]
[1722273400325,3.02252,3308.5,3307.4,3.56104]
[1722273400645,3.02233,3308.7,3307.4,3.0]
[1722273400836,3.02216,3308.9,3307.3,5.252]
[1722273400979,3.02236,3308.7,3307.3,5.252]
[1722273401179,3.02259,3308.5,3307.3,5.252]
[1722273401384,0.302259,3308.4,3307.3,2.252]
[1722273401619,3.02316,3307.8,3306.8,2.2901]
[1722273401779,3.0228,3308.2,3306.8,2.2901]
[1722273402007,2.3845,3308.7,3306.8,2.2901]
[1722273402008,9.20662,3308.4,3306.8,2.2901]
[1722273402330,2.3845,3308.7,3306.9,0.22901]
[1722273402331,3.57271,3308.3,3306.9,0.22901]
[1722273402635,3.02288,3308.1,3306.9,0.22901]
[1722273402799,3.02316,3307.8,3306.8,2.2901]
[1722273403121,3.02281,3308.2,3306.8,2.2901]
[1722273403319,0.55,3308.5,3306.8,2.2901]
[1722273403320,3.02289,3308.1,3306.8,2.2901]
[1722273403531,0.302289,3308.0,3306.9,0.22901]
[1722273403981,0.302289,3308.0,3306.8,2.2901]
[1722273404192,3.02332,3307.7,3306.8,2.2901]
[1722273404492,3.02309,3307.9,3306.8,2.2901]
[1722273405110,3.02292,3308.1,3306.8,2.2901]
[1722273405315,3.02301,3308.0,3306.8,2.2901]
[1722273405517,3.325371,3307.9,3306.8,2.2901]
[1722273405696,6.02281,3308.2,3306.9,0.06047295]
[1722273405886,0.540683,3308.6,3307.0,3.02379]
[1722273406082,0.540683,3308.6,3307.2,2.3753]
[1722273406290,0.540683,3308.6,3307.3,0.60403904]
[1722273406525,0.540683,3308.6,3307.3,3.60403904]
[1722273406736,3.02221,3308.9,3307.3,3.90723904]
[1722273406916,3.0219,3309.2,3307.5,2.3178]
[1722273406917,3.02202,3309.1,3307.5,2.3178]
[1722273407112,3.02202,3309.1,3307.5,2.37826088]
[1722273407329,3.02206,3309.0,3307.5,2.37826088]
[1722273407526,3.02215,3308.9,3307.5,2.37826088]
[1722273407832,3.02239,3308.7,3307.5,2.37826088]
[1722273408002,3.324465,3308.8,3307.5,2.37826088]
[1722273408324,3.02252,3308.5,3307.5,2.3178]
[1722273408702,3.02233,3308.7,3307.5,2.3178]
[1722273409101,0.302215,3308.8,3307.5,2.3178]
[1722273409102,3.02243,3308.6,3307.5,2.3178]